bitfinex/quotes_BTCUSD_20250420
["timestamp","ask_amount","ask_price","bid_price","bid_amount"]
[1745145808709,0.21684791,84113.0,84112.0,1.22124]
[1745145808906,0.21742691,84113.0,84112.0,1.22124]
[1745145809317,0.24493525,84113.0,84112.0,1.22124]
[1745145809541,0.24493525,84113.0,84103.0,0.0126312]
[1745145809542,0.01882307,84104.0,84103.0,0.0110522]
[1745145809711,0.18727098,84104.0,84103.0,0.0110522]
[1745145809912,0.18872304,84104.0,84103.0,0.0110522]
[1745145810280,0.23212304,84104.0,84103.0,0.0110522]
[1745145811127,0.23112304,84104.0,84103.0,0.0110522]
[1745145811328,0.23212304,84104.0,84103.0,0.0110522]
[1745145812206,0.21729997,84104.0,84103.0,0.0110522]
[1745145812412,0.34119983,84104.0,84103.0,0.0110522]
[1745145813210,0.12435192,84104.0,84103.0,0.0110522]
[1745145813939,0.25834068,84104.0,84103.0,0.0110522]
[1745145814354,0.18743447,84104.0,84103.0,0.0110522]
[1745145814560,0.18843447,84104.0,84103.0,0.0110522]
[1745145814785,0.23503447,84104.0,84103.0,0.0110522]
[1745145815394,0.23503447,84104.0,84103.0,1.2325722]
[1745145816202,0.23503447,84104.0,84103.0,1.22164]
[1745145816955,0.23403447,84104.0,84103.0,1.22164]
[1745145818716,0.21949362,84104.0,84103.0,1.22172]
[1745145819335,0.28263447,84104.0,84103.0,1.22172]
[1745145819726,0.69153447,84104.0,84103.0,1.22172]
[1745145824112,0.01454085,84103.0,84100.0,0.04021016]
[1745145824347,0.44844085,84100.0,84099.0,0.28836]
[1745145824594,0.10844085,84079.0,84051.0,0.004]
[1745145824824,0.97678876,84079.0,84073.0,0.2884]
[1745145825058,0.97778876,84079.0,84073.0,0.2884]
[1745145825287,0.97778876,84079.0,84078.0,1.22379882]
[1745145825796,0.0939,84077.0,84051.0,0.004]
[1745145826035,0.0939,84077.0,84039.0,8e-05]
[1745145826036,0.25248878,84052.0,84039.0,8e-05]
[1745145826302,0.6156649,84048.0,84039.0,8e-05]
[1745145826532,0.01554085,84046.0,84039.0,8e-05]
[1745145826761,0.44944085,84040.0,84039.0,8e-05]
[1745145827000,0.59354541,84032.0,84018.0,0.00210138]
[1745145827225,0.01454085,84028.0,84018.0,0.00210138]
[1745145827454,0.13398876,84026.0,84018.0,0.00210138]
[1745145827683,0.11944791,84026.0,84025.0,0.0025]
[1745145827910,0.11944791,84026.0,84025.0,0.0035]
[1745145828361,0.11944791,84026.0,84025.0,0.0025]
[1745145828622,0.13398876,84026.0,84025.0,0.29098]
[1745145829077,0.13398876,84026.0,84025.0,0.29459295]
[1745145829771,0.13398876,84026.0,84025.0,0.29259295]
[1745145830724,0.18650557,84026.0,84025.0,0.29259295]
[1745145830947,0.01454085,84025.0,84019.0,0.0126312]
[1745145831168,0.11944791,84024.0,84020.0,0.00238018]
[1745145831373,0.11304791,84024.0,84020.0,0.00238018]
[1745145831574,0.10701319,84024.0,84020.0,0.002]
[1745145832841,0.05251681,84023.0,84020.0,0.002]
[1745145833051,0.11944791,84022.0,84020.0,0.002]
[1745145834733,0.11837748,84022.0,84020.0,0.002]
[1745145834937,0.05251681,84021.0,84020.0,0.003]
[1745145835345,0.05251681,84021.0,84020.0,1.22601997]
[1745145835546,0.00571681,84021.0,84020.0,1.22753811]
[1745145835740,0.00571681,84021.0,84020.0,1.25283811]
[1745145835940,0.00571681,84021.0,84020.0,1.37228602]
[1745145836446,0.07204066,84041.0,84039.0,0.05]
[1745145836578,0.07204066,84041.0,84039.0,0.051]
[1745145836778,0.09407614,84065.0,84039.0,0.051]
[1745145836779,0.07204066,84044.0,84040.0,0.00385478]
[1745145837013,0.07204066,84044.0,84040.0,0.00485478]
[1745145837375,0.07204066,84044.0,84040.0,0.00385478]
[1745145837606,0.07204066,84044.0,84041.0,0.28952]
[1745145837959,0.07204066,84044.0,84042.0,0.00385478]
[1745145838167,0.09407614,84043.0,84042.0,0.34385478]
[1745145838574,0.09407614,84043.0,84042.0,0.29337478]
[1745145838575,0.21452405,84043.0,84042.0,0.29337478]
[1745145840555,0.001,84043.0,84042.0,0.29337478]
[1745145840789,0.0951,84051.0,84042.0,0.29337478]
[1745145840965,0.11944791,84043.0,84042.0,0.29337478]
[1745145841165,0.17421567,84043.0,84042.0,0.29337478]
[1745145841391,0.17421567,84043.0,84042.0,0.28952]
[1745145842535,0.05476776,84043.0,84042.0,0.28952]
[1745145842750,0.0004515,84046.0,84042.0,0.28952]
[1745145842935,0.11944791,84045.0,84042.0,0.28952]
[1745145843146,0.11944791,84045.0,84043.0,0.28952]
[1745145843376,0.12044791,84045.0,84043.0,0.28952]
[1745145843583,0.0004515,84046.0,84043.0,0.28952]
[1745145843795,0.0004515,84046.0,84044.0,0.00237951]
[1745145843993,0.0004515,84046.0,84043.0,0.28952]
[1745145845064,0.0004515,84046.0,84044.0,0.34]
[1745145845252,0.0004515,84046.0,84045.0,1.5626]
[1745145845548,0.0004515,84046.0,84045.0,1.2226]
[1745145851584,0.0004515,84046.0,84045.0,0.27708]
[1745145851806,0.0004515,84046.0,84045.0,0.29668]
[1745145851955,0.0004515,84046.0,84045.0,0.27708]
[1745145852992,0.0004515,84046.0,84045.0,0.27608]
[1745145855347,0.0004515,84046.0,84045.0,1.8386]
[1745145861286,0.0004515,84046.0,84045.0,1.8396]
[1745145861522,0.0004515,84046.0,84045.0,1.8386]
[1745145865741,0.09407614,84065.0,84045.0,1.4986]
[1745145865951,0.09507614,84065.0,84045.0,1.49873568]
[1745145870868,0.09507614,84065.0,84046.0,0.34]
[1745145871060,0.09407614,84065.0,84046.0,0.34]
[1745145871391,0.09507614,84065.0,84046.0,0.34]
[1745145874278,0.09507614,84065.0,84046.0,0.14061603]
[1745145875115,0.09507614,84065.0,84045.0,1.51833568]
[1745145875607,0.09507614,84065.0,84045.0,1.49873568]
[1745145876799,0.001,84065.0,84045.0,1.49873568]
[1745145877724,0.001,84065.0,84046.0,0.34]
[1745145880629,0.001,84065.0,84047.0,0.0023788]
[1745145884934,0.001,84065.0,84046.0,0.34]
[1745145885620,0.001,84065.0,84047.0,0.00237882]
[1745145890422,0.0475,84064.0,84047.0,0.00237882]
[1745145890632,0.0953,84064.0,84047.0,0.00237882]
[1745145890738,0.0963,84064.0,84047.0,0.00237882]
[1745145891608,0.0963,84064.0,84049.0,0.34]
[1745145891827,0.0963,84064.0,84050.0,0.00237893]
[1745145893302,0.0963,84064.0,84049.0,0.34]
[1745145893989,0.0963,84064.0,84050.0,0.00237891]
[1745145894408,0.0963,84064.0,84049.0,0.34]
[1745145894635,0.0963,84064.0,84050.0,0.00237891]
[1745145894828,0.0963,84064.0,84049.0,0.34]
[1745145895242,0.0963,84064.0,84050.0,0.00237892]
[1745145896420,0.0963,84064.0,84051.0,1.22224]
[1745145896630,0.0963,84064.0,84052.0,0.00237892]
[1745145896838,0.0963,84064.0,84051.0,1.22224]
[1745145897583,0.0963,84064.0,84052.0,0.00237892]
[1745145899045,0.0963,84064.0,84053.0,0.11944791]
[1745145900374,0.0963,84064.0,84051.0,1.22224]
[1745145900606,0.0963,84064.0,84052.0,0.23564]
[1745145900810,0.0963,84064.0,84053.0,0.23564]
[1745145900811,0.0953,84059.0,84053.0,0.23564]
[1745145901012,0.0953,84057.0,84053.0,0.23564]
[1745145901219,0.01454085,84051.0,84012.0,0.0004213]
[1745145901441,0.0953,84037.0,84013.0,0.23564]
[1745145901674,0.0475,84035.0,84013.0,0.23564]
[1745145901909,0.0475,84033.0,84013.0,0.02476822]
[1745145902142,0.11944791,84032.0,84014.0,0.23564]
[1745145903054,0.0475,84033.0,84015.0,0.34]
[1745145903300,0.0475,84033.0,84015.0,0.45944791]
[1745145903505,0.0478,84037.0,84015.0,0.45944791]
[1745145903720,0.0478,84037.0,84018.0,0.001]
[1745145904029,0.0478,84037.0,84020.0,0.1]
[1745145904218,0.0478,84037.0,84028.0,0.1]
[1745145904421,0.0478,84037.0,84030.0,0.34]
[1745145905212,0.0478,84037.0,84031.0,1.2224]
[1745145905416,0.0478,84037.0,84032.0,0.34]
[1745145905780,0.0478,84037.0,84034.0,0.34]
[1745145908843,0.0478,84037.0,84033.0,0.23568]
[1745145909456,0.16484791,84036.0,84033.0,0.23568]
[1745145909660,0.0454,84035.0,84033.0,0.23568]
[1745145909858,0.16484791,84034.0,84033.0,0.23568]
[1745145910275,0.16584791,84034.0,84033.0,0.23568]
[1745145911061,0.0925,84033.0,84031.0,1.2224]
[1745145911258,0.11944791,84032.0,84031.0,1.2224]
[1745145911483,0.16484791,84032.0,84031.0,1.2224]
[1745145911663,0.16584791,84032.0,84031.0,1.45232]
[1745145912813,0.22748876,84032.0,84031.0,1.45248]
[1745145913372,0.0959,84030.0,84012.0,0.02503699]
[1745145913575,0.11944791,84029.0,84012.0,0.02503699]
[1745145913778,0.0462,84025.0,84012.0,0.02503699]
[1745145913988,0.11944791,84024.0,84012.0,0.02503699]
[1745145914179,0.0462,84023.0,84012.0,0.02503699]
[1745145914361,0.16564791,84022.0,84012.0,0.02503699]
[1745145914571,0.0462,84020.0,84012.0,0.02503699]
[1745145914778,0.11944791,84019.0,84012.0,0.02503699]
[1745145914990,0.0462,84018.0,84012.0,0.0004213]
[1745145915193,0.11944791,84017.0,84013.0,1.4526]
[1745145915603,0.12044791,84017.0,84013.0,1.4526]
[1745145915815,0.0959,84016.0,84013.0,1.4526]
[1745145916026,0.11944791,84015.0,84013.0,1.4526]
[1745145916509,0.12044791,84015.0,84013.0,1.4526]
[1745145918398,0.12044791,84015.0,83972.0,0.412]
[1745145918399,0.0928,84014.0,83972.0,0.412]
[1745145918666,0.0454,84012.0,84009.0,1.4464]
[1745145918891,0.11944791,84011.0,84009.0,1.4464]
[1745145919310,0.12044791,84011.0,84009.0,1.4464]
[1745145919512,0.0454,84010.0,84009.0,1.4464]
[1745145919722,0.16484791,84010.0,84009.0,1.4464]
[1745145919917,0.16584791,84010.0,84009.0,1.4464]
[1745145920116,0.21324791,84010.0,84009.0,1.4464]
[1745145920990,0.22778876,84010.0,84009.0,1.4464]
[1745145921190,0.3076867,84010.0,84009.0,1.44983023]
[1745145921392,0.2365267,84010.0,84009.0,1.44983023]
[1745145921630,0.01454085,84009.0,83962.0,0.412]
[1745145921865,0.22678876,84008.0,83962.0,0.412]
[1745145922079,0.62114791,84008.0,83962.0,0.413]
[1745145922281,0.62214791,84008.0,83984.0,0.0248604]
[1745145922732,0.63668876,84008.0,83984.0,0.0248604]
[1745145922969,0.01454085,84007.0,83984.0,0.0248604]
[1745145923207,0.01454085,84005.0,83984.0,0.0248604]
[1745145923423,0.01454085,84003.0,83975.0,0.0004206]
[1745145923639,0.11094085,84001.0,83975.0,0.0004206]
[1745145923849,0.23038876,84001.0,83975.0,0.0004206]
[1745145924050,0.23138876,84001.0,83975.0,0.0004206]
[1745145924703,0.64028876,84001.0,83975.0,0.0004206]
[1745145924904,0.64028876,84001.0,84000.0,4.07008464]
[1745145925333,0.64028876,84001.0,84000.0,5.51676464]
[1745145927972,0.64028876,84001.0,84000.0,5.51680464]
[1745145929187,0.62574791,84001.0,84000.0,5.51680464]
[1745145931129,0.63928876,84001.0,84000.0,5.51680464]
[1745145931330,0.64028876,84001.0,84000.0,5.4796637]
[1745145933613,0.62474791,84001.0,84000.0,5.4796637]
[1745145933875,0.21584791,84001.0,84000.0,5.4796637]
[1745145934363,0.11944791,84001.0,84000.0,5.4796637]
[1745145939608,0.0465,84009.0,84000.0,5.4796637]
[1745145939815,0.11944791,84008.0,84000.0,5.4796637]
[1745145945837,0.11944791,84008.0,84000.0,5.2559837]
[1745145946057,0.11944791,84008.0,84001.0,0.21704]
[1745145947759,0.0497,84026.0,84001.0,0.21804]
[1745145947966,0.05476776,84040.0,84001.0,0.21804]
[1745145947967,0.10446776,84040.0,84003.0,0.0461]
[1745145948075,0.10446776,84040.0,84004.0,0.11944791]
[1745145948305,0.10446776,84040.0,84005.0,0.00237996]
[1745145948489,0.10446776,84040.0,84006.0,0.11944791]
[1745145948700,0.10446776,84040.0,84007.0,0.047]
[1745145948901,0.10446776,84040.0,84008.0,0.11944791]
[1745145949322,0.10446776,84040.0,84009.0,0.21704]
[1745145949525,0.10446776,84040.0,84010.0,0.11944791]
[1745145949971,0.10446776,84040.0,84011.0,0.34]
[1745145950187,0.10446776,84040.0,84011.0,0.45944791]
[1745145950416,0.10446776,84040.0,84011.0,0.46044791]
[1745145951009,0.0497,84040.0,84011.0,0.46044791]
[1745145951462,0.0497,84040.0,84012.0,0.00237981]
[1745145951764,0.0497,84040.0,84012.0,0.001]
[1745145953259,0.09491774,84043.0,84013.0,0.0493]
[1745145953459,0.09491774,84043.0,84013.0,0.16874791]
[1745145953666,0.09491774,84043.0,84013.0,0.16974791]
[1745145955853,0.09491774,84043.0,84014.0,0.05207971]
[1745145956068,0.09491774,84043.0,84016.0,0.0493]
[1745145956325,0.09491774,84043.0,84017.0,0.11944791]
[1745145956666,0.09491774,84043.0,84017.0,0.12044791]
[1745145957111,0.09491774,84043.0,84018.0,0.34]
[1745145957278,0.09491774,84043.0,84020.0,0.34]
[1745145957484,0.09491774,84043.0,84022.0,0.34]
[1745145958039,0.09491774,84043.0,84022.0,0.341]
[1745145959547,0.09491774,84043.0,84022.0,0.36377406]
[1745145960587,0.09491774,84043.0,84023.0,0.11944791]
[1745145960769,0.09491774,84043.0,84023.0,0.12044791]
[1745145963141,0.09491774,84043.0,84023.0,0.001]
[1745145963725,0.09491774,84043.0,84023.0,0.20504]
[1745145965123,0.0451,84033.0,84023.0,0.54404]
[1745145965332,0.047,84030.0,84023.0,0.20404]
[1745145966276,0.0010644,84024.0,84023.0,0.20404]
[1745145969143,6.44e-05,84024.0,84023.0,0.20404]
[1745145973737,0.04173674,84030.0,84023.0,0.20404]
[1745145973971,0.04178204,84030.0,84023.0,0.20404]
[1745145974583,4.53e-05,84030.0,84023.0,0.20404]
[1745145974815,4.53e-05,84030.0,84024.0,0.00237979]
[1745145975193,4.53e-05,84030.0,84024.0,0.00337979]
[1745145976232,4.53e-05,84030.0,84025.0,0.20408]
[1745145976447,4.53e-05,84030.0,84026.0,0.00237958]
[1745145976942,4.53e-05,84030.0,84027.0,0.16794791]
[1745145977095,4.53e-05,84030.0,84028.0,0.04917924]
[1745145977314,4.53e-05,84030.0,84029.0,0.11944791]
[1745145977684,4.53e-05,84030.0,84029.0,0.12044791]
[1745145978339,4.53e-05,84030.0,84029.0,0.46044791]
[1745145979270,4.53e-05,84030.0,84029.0,0.65896791]
[1745145980236,4.53e-05,84030.0,84029.0,0.53852]
[1745145980435,4.53e-05,84030.0,84029.0,0.53952]
[1745145981308,4.53e-05,84030.0,84029.0,0.341]
[1745145981508,4.53e-05,84030.0,84029.0,0.53852]
[1745145982891,4.53e-05,84030.0,84029.0,0.53952]
[1745145983083,4.53e-05,84030.0,84029.0,0.65896791]
[1745145984699,4.53e-05,84030.0,84029.0,0.53952]
[1745145987672,4.53e-05,84030.0,84029.0,1.76212]
[1745145989575,4.53e-05,84030.0,84029.0,1.88156791]
[1745145990397,0.0368869,84050.0,84029.0,1.54156791]
[1745145990622,0.0368869,84050.0,84029.0,1.4215715]
[1745145991073,0.0368869,84050.0,84030.0,0.1928]
[1745145991311,0.11944791,84049.0,84030.0,0.1928]
[1745145991549,0.11944791,84049.0,84029.0,1.2230515]
[1745145991770,0.11944791,84049.0,84030.0,0.1928]
[1745145992535,0.11944791,84049.0,84032.0,0.34]
[1745145992742,0.049,84041.0,84031.0,0.1928]
[1745145992939,0.049,84039.0,84031.0,0.1928]
[1745145993156,0.11944791,84038.0,84031.0,0.1928]
[1745145993322,0.09407614,84033.0,84031.0,0.1928]
[1745145993684,0.21684791,84032.0,84000.0,3.84957009]
[1745145993890,0.21684791,84032.0,84001.0,1.75536]
[1745145994230,0.21684791,84032.0,84001.0,1.41536]
[1745145994427,0.21684791,84032.0,84002.0,0.34]
[1745145994615,0.21684791,84032.0,84001.0,1.41536]
[1745145994819,0.21684791,84032.0,84002.0,0.34]
[1745145995038,0.21684791,84032.0,84002.0,0.36227675]
[1745145997191,0.21684791,84032.0,84003.0,0.1928]
[1745145997597,0.21684791,84032.0,84004.0,0.00238025]
[1745145997796,0.0974,84032.0,84005.0,0.11944791]
[1745145998503,0.0974,84032.0,84006.0,0.00238]
[1745145998718,0.0974,84032.0,84007.0,0.11944791]
[1745145998920,0.0974,84032.0,84008.0,0.00238]
[1745145999518,0.0974,84032.0,84008.0,0.34]
[1745146002385,0.0974,84032.0,84009.0,0.00238]
[1745146002805,0.0974,84032.0,84008.0,0.34]
[1745146002995,0.0974,84032.0,84009.0,0.00238]
[1745146003192,0.0974,84032.0,84010.0,0.11944791]
[1745146003466,0.0974,84032.0,84011.0,0.0023799]
[1745146003628,0.00045347,84038.0,84012.0,0.11944791]
[1745146003871,0.00045347,84038.0,84017.0,0.01454085]
[1745146004002,0.00045347,84038.0,84022.0,0.001]
[1745146004208,0.00045347,84038.0,84023.0,0.31466729]
[1745146004542,0.00045347,84038.0,84026.0,0.001]
[1745146004840,0.00045347,84038.0,84027.0,0.11944791]
[1745146006148,0.00045347,84038.0,84028.0,0.19284]
[1745146006293,0.00045347,84038.0,84029.0,0.11944791]
[1745146008149,0.00045347,84038.0,84030.0,0.34]
[1745146008353,0.00045347,84038.0,84032.0,0.34]
[1745146008555,0.00045347,84038.0,84034.0,0.34]
[1745146011869,0.0458,84037.0,84034.0,0.34]
[1745146014119,0.00045347,84038.0,84034.0,0.34]
[1745146014526,0.00045347,84038.0,84035.0,0.00237956]
[1745146014934,0.03475924,84053.0,84050.0,0.01189767]
[1745146015119,0.03475924,84053.0,84051.0,0.00237903]
[1745146015328,0.03475924,84053.0,84050.0,0.01189767]
[1745146016391,0.03475924,84053.0,84051.0,0.20032]
[1745146019423,0.03575924,84053.0,84051.0,0.20032]
[1745146019868,0.16464791,84052.0,84051.0,0.20032]
[1745146020353,0.16564791,84052.0,84051.0,0.20032]
[1745146020793,0.21174791,84052.0,84051.0,0.20032]
[1745146021484,0.0913,84051.0,84047.0,0.0118981]
[1745146021709,0.0452,84049.0,84048.0,0.20032]
[1745146022173,0.16564791,84049.0,84048.0,0.20032]
[1745146025425,0.16564791,84049.0,84048.0,1.42292]
[1745146044433,0.16564791,84049.0,84048.0,1.41668]
[1745146046773,0.16570722,84049.0,84048.0,1.41668]
[1745146049492,0.16570722,84049.0,84048.0,1.41672]
[1745146051074,0.16470722,84049.0,84048.0,1.41672]
[1745146051276,0.16570722,84049.0,84048.0,1.41672]
[1745146056997,0.16470722,84049.0,84048.0,1.41672]
[1745146057625,0.11950722,84049.0,84048.0,1.41672]
[1745146058377,0.11950722,84049.0,84048.0,1.75772]
[1745146058582,5.931e-05,84049.0,84048.0,1.7920716]
[1745146058976,5.931e-05,84049.0,84048.0,1.75772]
[1745146061571,5.931e-05,84049.0,84048.0,1.7592]
[1745146062956,5.931e-05,84049.0,84048.0,1.7582]
[1745146063163,5.931e-05,84049.0,84048.0,1.4182]
[1745146063371,0.11950722,84049.0,84048.0,1.4182]
[1745146063620,0.08906227,84049.0,84048.0,1.4182]
[1745146065957,0.08906227,84049.0,84048.0,1.22268]
[1745146066140,0.08906227,84049.0,84048.0,1.4182]
[1745146067284,0.10360312,84049.0,84048.0,1.4182]
[1745146067496,0.55760312,84049.0,84048.0,1.4182]
[1745146067942,0.60370312,84049.0,84048.0,1.4182]
[1745146068155,0.62576114,84049.0,84048.0,1.4182]
[1745146068358,0.86371757,84049.0,84048.0,1.4182]
[1745146068608,0.10744085,84042.0,84041.0,0.19552]
[1745146068821,0.22688876,84042.0,84041.0,0.19552]
[1745146069036,0.22788876,84042.0,84041.0,0.19552]
[1745146069458,0.56788876,84042.0,84041.0,0.19552]
[1745146070497,0.97678876,84042.0,84041.0,0.19552]
[1745146071127,0.99884678,84042.0,84041.0,0.19552]
[1745146071345,0.99884678,84042.0,84034.0,0.32421901]
[1745146071346,0.44744085,84035.0,84034.0,0.32421901]
[1745146071483,0.56688876,84035.0,84034.0,0.32421901]
[1745146071665,0.56788876,84035.0,84034.0,0.32421901]
[1745146072912,0.97678876,84035.0,84034.0,0.32421901]
[1745146074135,1.02995863,84035.0,84034.0,0.32421901]
[1745146076360,1.10126863,84035.0,84034.0,0.32421901]
[1745146078299,1.10126863,84035.0,84034.0,0.27647408]
[1745146080168,1.02895863,84035.0,84034.0,0.27647408]
[1745146080396,1.02995863,84035.0,84034.0,0.27647408]
[1745146080557,0.58151778,84035.0,84034.0,0.27647408]
[1745146081806,0.59605863,84035.0,84034.0,0.27647408]
[1745146082321,0.54288876,84035.0,84034.0,0.27647408]
[1745146083240,0.13398876,84035.0,84034.0,0.27647408]
[1745146093323,0.13398876,84035.0,84034.0,0.23934677]
[1745146098282,0.13498876,84035.0,84034.0,0.23934677]
[1745146098487,0.80898483,84035.0,84034.0,0.23770067]
[1745146102964,0.80898483,84035.0,84034.0,0.23523587]
[1745146103261,1.21788483,84035.0,84034.0,0.23523587]
[1745146103496,1.23992608,84035.0,84034.0,0.23523587]
[1745146104238,1.23992608,84035.0,84034.0,0.23441427]
[1745146105784,1.29291117,84035.0,84034.0,0.23441427]
[1745146106177,1.29291117,84035.0,84034.0,0.18666862]
[1745146106378,1.34291117,84035.0,84034.0,0.13914244]
[1745146106818,1.34291117,84035.0,84031.0,1.223]
[1745146106819,0.64164541,84032.0,84031.0,1.223]
[1745146107043,1.03085088,84032.0,84031.0,1.223]
[1745146107216,1.03185088,84032.0,84031.0,1.223]
[1745146107417,1.05389213,84032.0,84031.0,1.223]
[1745146110059,0.59255958,84027.0,84026.0,0.18352]
[1745146110288,0.71200749,84027.0,84026.0,0.18352]
[1745146110497,0.71300749,84027.0,84026.0,0.18352]
[1745146111113,0.71200749,84027.0,84026.0,0.18352]
[1745146111278,0.71300749,84027.0,84026.0,0.18352]
[1745146111478,0.47398876,84027.0,84026.0,0.18352]
[1745146112704,0.74374632,84027.0,84026.0,0.18352]
[1745146112911,0.85220857,84027.0,84026.0,0.18352]
[1745146113316,0.87424982,84027.0,84026.0,0.18352]
[1745146113697,0.88525977,84027.0,84026.0,0.18352]
[1745146113898,0.01454085,84022.0,84010.0,1.22324]
[1745146114131,0.01454085,84020.0,84015.0,0.18352]
[1745146114464,0.13398876,84016.0,84015.0,0.18352]
[1745146115023,0.13398876,84016.0,84015.0,0.18397347]
[1745146116337,0.13398876,84016.0,84015.0,0.00045347]
[1745146116597,0.17908876,84016.0,84015.0,0.18397347]
[1745146117668,0.78884632,84016.0,84015.0,0.18397347]
[1745146121489,0.78884632,84016.0,84015.0,0.00045347]
[1745146121711,0.78884632,84016.0,84015.0,0.18401347]
[1745146121928,0.84192761,84016.0,84015.0,0.18401347]
[1745146122583,0.84192761,84016.0,84014.0,5.277e-05]
[1745146122584,0.59259357,84015.0,84014.0,5.277e-05]
[1745146122787,0.71249435,84015.0,84014.0,0.18361277]
[1745146123261,0.73451497,84015.0,84014.0,5.277e-05]
[1745146123688,0.01454085,84007.0,84000.0,0.02635897]
[1745146123890,0.01454085,84007.0,83970.0,0.01]
[1745146123891,0.11944791,84001.0,83989.0,0.00445962]
[1745146124105,0.40374632,84000.0,83989.0,0.00445962]
[1745146124512,0.40374632,84000.0,83989.0,0.00545962]
[1745146124991,0.40374632,84000.0,83989.0,0.00445962]
[1745146125402,0.40374632,84000.0,83990.0,1.40156]
[1745146129432,0.40374632,84000.0,83990.0,1.40256]
[1745146129607,0.38920547,84000.0,83990.0,1.40256]
[1745146129813,0.01454085,83999.0,83990.0,1.40256]
[1745146130012,0.01454085,83997.0,83990.0,1.40256]
[1745146130232,0.01454085,83995.0,83990.0,1.40256]
[1745146130453,0.11944791,83994.0,83990.0,1.40256]
[1745146138517,0.11944791,83994.0,83991.0,0.17816]
[1745146139044,0.11944791,83994.0,83991.0,0.17916]
[1745146139573,0.26975756,84013.0,83991.0,0.17916]
[1745146139729,0.13398876,84012.0,83991.0,0.17816]
[1745146140084,0.01454085,84009.0,83991.0,0.17816]
[1745146140212,0.11944791,84008.0,83991.0,0.17816]
[1745146140833,0.11944791,84008.0,83992.0,0.17816]
[1745146141218,0.01454085,84006.0,83992.0,0.17816]
[1745146141388,0.01454085,84004.0,83992.0,0.17816]
[1745146141548,0.01454085,84002.0,83992.0,0.17916]
[1745146141756,0.01454085,84000.0,83992.0,0.17916]
[1745146141965,0.11944791,83999.0,83992.0,0.17816]
[1745146142147,0.11944791,83999.0,83992.0,0.17916]
[1745146149371,0.11944791,83999.0,83993.0,1.22344]
[1745146149733,0.11944791,83999.0,83993.0,1.22444]
[1745146155037,0.11944791,83999.0,83993.0,1.22344]
[1745146155985,0.06384085,83998.0,83993.0,1.22344]
[1745146156203,0.11944791,83997.0,83993.0,1.22344]
[1745146156404,0.11944791,83997.0,83993.0,1.22444]
[1745146156860,0.11944791,83997.0,83993.0,1.22344]
[1745146157696,0.01454085,83996.0,83993.0,1.22344]
[1745146157903,0.11944791,83995.0,83993.0,1.22344]
[1745146158111,0.01454085,83994.0,83993.0,1.22344]
[1745146158334,0.13398876,83994.0,83993.0,1.39632]
[1745146162765,0.13297215,83994.0,83993.0,1.22344]
[1745146162954,0.13297215,83994.0,83993.0,1.39632]
[1745146167227,0.13297215,83994.0,83993.0,1.39088]
[1745146175042,0.13297215,83994.0,83993.0,1.22344]
[1745146175223,0.13297215,83994.0,83993.0,1.39088]
[1745146183715,0.52397215,83994.0,83993.0,1.39092]
[1745146183931,0.18397215,83994.0,83993.0,1.39092]
[1745146195652,0.05,83994.0,83993.0,1.39192]
[1745146200967,0.05,83994.0,83993.0,1.39092]
[1745146201439,0.05,83994.0,83993.0,1.38548]
[1745146220122,0.1457,83994.0,83993.0,1.38548]
[1745146226355,0.0457,83994.0,83993.0,1.38548]
[1745146227955,0.16514791,83994.0,83993.0,1.22348]
[1745146228128,0.16614791,83994.0,83993.0,1.38028]
[1745146228283,0.18068876,83994.0,83993.0,1.38028]
[1745146229289,0.18168876,83994.0,83993.0,1.38028]
[1745146229497,0.22848876,83994.0,83993.0,1.38028]
[1745146230794,0.24541978,83994.0,83993.0,1.38028]
[1745146230989,0.24441978,83994.0,83993.0,1.38028]
[1745146231226,0.24541978,83994.0,83993.0,1.38028]
[1745146231735,0.24541978,83994.0,83993.0,1.38609552]
[1745146235123,0.24441978,83994.0,83993.0,1.38609552]
[1745146235925,0.24541978,83994.0,83993.0,1.22929552]
[1745146236080,0.24541978,83994.0,83993.0,1.38609552]
[1745146237000,0.24541978,83994.0,83993.0,1.22929552]
[1745146237203,0.24541978,83994.0,83993.0,1.38609552]
[1745146238142,0.24541978,83994.0,83993.0,1.22929552]
[1745146238355,0.24541978,83994.0,83993.0,1.38609552]
[1745146239592,0.22848876,83994.0,83993.0,1.38609552]
[1745146241870,0.49824632,83994.0,83993.0,1.38609552]
[1745146244094,0.49724632,83994.0,83993.0,1.38609552]
[1745146244906,0.49824632,83994.0,83993.0,1.38609552]
[1745146253929,0.49788349,83994.0,83993.0,1.38609552]
[1745146255106,0.49688349,83994.0,83993.0,1.38609552]
[1745146261305,0.45008349,83994.0,83993.0,1.38609552]
[1745146261625,0.40474632,83994.0,83993.0,1.38609552]
[1745146270976,0.40106592,83994.0,83993.0,1.38609552]
[1745146281992,0.49796592,83994.0,83993.0,1.38609552]
[1745146286305,0.49796592,83994.0,83993.0,1.22929552]
[1745146286509,0.49796592,83994.0,83993.0,1.37981552]
[1745146295105,0.49796592,83994.0,83993.0,1.22929552]
[1745146295307,0.49796592,83994.0,83993.0,1.37981552]
[1745146296024,0.45036592,83994.0,83993.0,1.37981552]
[1745146304229,0.45036592,83994.0,83993.0,1.22929552]
[1745146304531,0.45036592,83994.0,83993.0,1.37973552]
[1745146307335,0.01454085,83979.0,83954.0,0.0467]
[1745146307533,0.01454085,83979.0,83911.0,0.004]
[1745146307534,0.001,83969.0,83968.0,1.22356]
[1745146307697,0.001,83969.0,83968.0,1.374]
[1745146307698,0.13498876,83969.0,83968.0,1.374]
[1745146308147,0.13598876,83969.0,83968.0,1.374]
[1745146308438,0.48700547,83969.0,83968.0,1.374]
[1745146308548,0.50199891,83969.0,83968.0,1.374]
[1745146308747,0.51186939,83969.0,83968.0,1.374]
[1745146309188,0.51186939,83969.0,83968.0,1.22356]
[1745146309389,0.12977098,83969.0,83968.0,1.22356]
[1745146309815,0.14431183,83969.0,83968.0,1.22356]
[1745146309999,0.19421183,83969.0,83968.0,1.374]
[1745146310202,0.24141183,83969.0,83968.0,1.22356]
[1745146310403,0.24141183,83969.0,83968.0,1.374]
[1745146310757,0.24141183,83969.0,83968.0,1.22356]
[1745146310956,0.24141183,83969.0,83968.0,1.37404]
[1745146314944,0.24141183,83969.0,83968.0,1.22356]
[1745146315118,0.51116939,83969.0,83968.0,1.37889694]
[1745146322016,0.51016939,83969.0,83968.0,1.37889694]
[1745146323173,0.51016939,83969.0,83968.0,1.37404]
[1745146323174,0.51116939,83969.0,83968.0,1.37404]